Cogmind - Beta 17 @@@ ROGUE MODE // 2026.08.14 @ 07:49:06 Player: GogoFox Result: Destroyed by D-53 Grenadier with Mini Grenade Launcher Performance ------------- Evolutions (0) 0 Regions Visited (2) 400 Robots Destroyed (31) 155 Value Destroyed (738) 738 Prototype IDs (2) 40 Alien Tech Used (0) 0 Bonus (0) 0 TOTAL SCORE: 1333 Bonus ------- None Cogmind --------- Core Integrity 0/250 Matter 290/300 Energy 54/250 System Corruption 0% Temperature Warm (108) Movement Treading (480) Ox4 Location -10/Mines Parts ------- > --- POWER (1) -------- Ion Engine > --- PROPULSION (2) --- Light Treads > --- UTILITY (2) ------ Huge Storage Unit > --- WEAPON (2) ------- Particle Gun > --- INVENTORY (25) --- Light Ion Engine Light Ion Engine Flight Unit VTOL Module VTOL Module VTOL Module VTOL Module Heat Sink Improved Heat Sink Small Storage Unit Weight Redist. System Structural Scanner Visual Processing Unit Signal Interpreter Targeting Computer Propulsion Shielding Shield Generator Recalibrator Particle Gun Rocket Launcher Rocket Launcher Mining Laser Peak State ------------ > --- POWER ------------ Light Nuclear Core > --- PROPULSION ------- Light Treads Light Treads > --- UTILITY ---------- Huge Storage Unit Shield Generator > --- WEAPON ----------- Autogun Autogun > --- INVENTORY -------- Ion Engine Light Ion Engine Light Ion Engine Light Treads VTOL Module VTOL Module VTOL Module VTOL Module Heat Sink Improved Heat Sink Small Storage Unit Weight Redist. System Structural Scanner Visual Processing Unit Signal Interpreter Targeting Computer Propulsion Shielding Shield Generator Shield Generator Recalibrator Particle Gun Rocket Launcher Rocket Launcher Mining Laser [Rating: 16] Favorites ----------- Power Light Nuclear Core Engine Ion Engine Power Core Light Nuclear Core Propulsion Light Treads Treads Light Treads Wheel Compact Wheel Utility Shield Generator Device Shield Generator Storage Huge Storage Unit Protection Utility Shielding Weapon Autogun Energy Gun Particle Gun Ballistic Gun Autogun Build | -11 -10 -10 ------- Run | Yrd Mat Min Slots Evolved . | . . . Power . | . . . Propulsion . | . . . Utility . | . . . Weapon . | . . . Parts Attached 20 | 6 9 5 Power 4 | 1 1 2 Engine 2 | 1 . 1 Core 2 | . 1 1 Reactor . | . . . Propulsion 5 | 2 2 1 Treads 3 | 2 . 1 Leg . | . . . Wheel 2 | . 2 . Hover . | . . . Flight . | . . . Utility 6 | 1 4 1 Device 3 | . 2 1 Storage 2 | 1 1 . Processor . | . . . Hackware . | . . . Protection 1 | . 1 . Artifact . | . . . Weapon 5 | 2 2 1 Energy Gun 1 | . . 1 Energy Cannon . | . . . Ballistic Gun 4 | 2 2 . Ballistic Cannon . | . . . Launcher . | . . . Special Weapon . | . . . Impact Weapon . | . . . Slashing Weapon . | . . . Piercing Weapon . | . . . Special Melee Weapon . | . . . Unidentified Prototypes . | . . . Parts Lost 9 | . 1 8 Power 2 | . . 2 Propulsion 3 | . 1 2 Utility 2 | . . 2 Weapon 2 | . . 2 Highest Loss Streak 5 | . 1 5 To Critical Strikes 1 | . 1 . Average Backups 17 | 2 16 23 Power 2 | . 2 3 Propulsion 4 | 1 3 5 Utility 7 | . 6 11 Weapon 3 | . 3 3 Tool/Special . | . . . Unused Backups 26 | . 5 21 Power 2 | . . 2 Propulsion 8 | . 3 5 Utility 11 | . 1 10 Weapon 5 | . 1 4 Tool/Special . | . . . Average Slot Usage (%) 95 | . 94 97 Engine 5 | . 6 . Core 8 | . 7 12 Treads 13 | . 9 27 Wheel 10 | . 13 . Device 12 | . 12 13 Storage 14 | . 14 14 Protection 1 | . 1 . Energy Gun 2 | . . 12 Ballistic Gun 25 | . 28 14 Peak Build Rating 16 | 6 16 16 Average Rating 12 | 4 12 14 On Entrance 7 | . 6 16 Avg Prop Armor Cover (%) . | . . . Naked Turns . | . . . Heaviest Build 93 | 14 93 93 Greatest Support 40 | 40 40 40 Greatest Overweight (x) 5 | 1 5 2 Average Overweight (x) 2 | . 2 2 Largest Inventory Capacity 25 | 8 25 25 Average Capacity 21 | 7 21 25 Most Carried 25 | 4 25 25 Average Carried 17 | 2 16 23 Final Capacity 25 | 8 25 25 Final Carried 25 | 4 25 22 Class Distribution -------------------- 100% | Mutant Dominant Class ---------------- Mutant | -10/Materials Mutant | -10/Mines Resources | -11 -10 -10 ----------- Run | Yrd Mat Min Matter Collected 960 | 240 594 126 Remotely . | . . . Salvage Created 1122 | . 971 151 Parts 67 | . 56 11 Haulers Intercepted 2 | . 2 . Recyclers Shooed 4 | . 4 . Parts Field Recycled . | . . . Retrieved Matter . | . . . Parts Self-Destructed . | . . . Prevented . | . . . Parts Restored . | . . . Kills | -11 -10 -10 ------- Run | Yrd Mat Min Combat Hostiles Destroyed 21 | . 15 6 Guns 21 | . 15 6 Classes Destroyed 9 | . 8 1 Worker 1 | . 1 . Hauler 2 | . 2 . Recycler 3 | . 3 . Mechanic 1 | . 1 . Operator 1 | . 1 . Watcher 2 | . 2 . Swarmer 6 | . 3 3 Grunt 14 | . 12 2 Demolisher 1 | . . 1 Best Kill Streak 5 | . 5 3 Combat Bots Only 3 | . 3 3 Max Kills in Single Turn 2 | . 2 2 Gunslinging . | . . . Exploded . | . . . Melee . | . . . Uniques/NPCs Destroyed . | . . . Combat | -11 -10 -10 -------- Run | Yrd Mat Min Hostile Shots Fired 138 | . 92 46 Missed 41 | . 28 13 Hits 97 | . 64 33 Projectile 97 | . 64 33 AOE 12 | . . 12 Critical Strikes 4 | . 3 1 Damage Taken 1273 | . 603 670 Core 260 | . 90 170 Absorbed by Shields 230 | . 151 79 Core Remaining (%) 100 | 100 . . Volleys Fired 88 | . 69 19 Largest 2 | . 2 2 Hottest 88 | . 46 88 Shots Fired 169 | . 138 31 Gun 169 | . 138 31 Cannon . | . . . Launcher . | . . . Special . | . . . Kinetic 154 | . 138 16 Thermal 15 | . . 15 Explosive . | . . . Electromagnetic . | . . . Robot Hit Streak 25 | . 25 5 Robot Miss Streak 4 | . 4 2 Penetration Max . | . . . Secondary Targets . | . . . Shots Hit Robots 115 | . 97 18 Core Hits 47 | . 37 10 Critical Kills 1 | . 1 . Critical Parts Destroyed . | . . . Critical Strikes 1 | . 1 . Destroy 1 | . 1 . Melee Attacks . | . . . Impact . | . . . Slashing . | . . . Piercing . | . . . Sneak Attacks . | . . . Combat Hostiles . | . . . Follow-up Attacks . | . . . Damage Inflicted 1759 | . 1433 326 Guns 1759 | . 1433 326 Cannons . | . . . Explosions . | . . . Melee . | . . . Ramming . | . . . Kinetic 1633 | . 1433 200 Thermal 126 | . . 126 Explosive . | . . . Electromagnetic . | . . . Impact . | . . . Slashing . | . . . Piercing . | . . . Highest Corruption . | . . . Average Corruption . | . . . Corruption Purged . | . . . Corruption Blocked . | . . . Overload Shots . | . . . Overflow Damage . | . . . Projectiles . | . . . Explosions . | . . . Melee . | . . . Knockbacks . | . . . Impact . | . . . Kinetic . | . . . Secondary . | . . . Self-Inflicted Damage . | . . . Shots . | . . . Rammed . | . . . Targets Rammed . | . . . Kicked . | . . . Crushed . | . . . Highest Temperature 206 | . 62 206 Average Temperature 31 | . 11 76 Received Heat Transfer 442 | . 340 102 Siege Activations . | . . . Martial Activations . | . . . Shielding Activations . | . . . Robots Disrupted . | . . . Combat Hostiles . | . . . Robots Corrupted . | . . . Combat Hostiles . | . . . Parts Fried . | . . . Impact Corruptions . | . . . Robots Melted . | . . . Combat Hostiles . | . . . Parts Melted . | . . . Heat Transferred 296 | . . 296 Parts Sabotaged . | . . . Parts Stolen . | . . . Parts Stripped . | . . . Power Chain Reactions . | . . . Alert | -11 -10 -10 ------- Run | Yrd Mat Min Maximum Alert Level . | . . . Low Security (%) 100 | 100 100 100 Level 1 . | . . . Level 2 . | . . . Level 3 . | . . . Level 4 . | . . . Level 5 . | . . . High Security . | . . . Max Security . | . . . Peak Influence 126 | . 126 70 Initial 30 | . . 30 Average 38 | . 47 15 Influence Increases 653 | . 513 140 Destroy 0b10 Robot/C 420 | . 300 120 Destroy 0b10 Robot/NC 50 | . 50 . Destroy Leader 88 | . 68 20 Successful Hack 33 | . 33 . Destroy Structure 2 | . 2 . Lose Combat Pursuer 60 | . 60 . Influence Decreases 653 | . 436 217 Entered New Map 47 | . . 47 Time Decay 564 | . 426 138 Lost Part 42 | . 10 32 Squads Dispatched 2 | . 2 . Investigation 1 | . 1 . Extermination . | . . . Reinforcement 1 | . 1 . Assault . | . . . Garrison . | . . . Intercept . | . . . Searches Triggered . | . . . Construction Impeded . | . . . Haulers Reinforced . | . . . Active Scanning Responses . | . . . Cargo Convoy Interrupts . | . . . Stealth | -11 -10 -10 --------- Run | Yrd Mat Min Distress Signals 1 | . 1 . Communications Jammed . | . . . Distress Signals . | . . . Times Spotted 39 | . 32 7 Peak Tracking Total 4 | . 4 3 Tactical Retreats 2 | . 2 . Traps | -11 -10 -10 ------- Run | Yrd Mat Min Traps Triggered 1 | . 1 . Indirectly . | . . . Trap Hack Attempts . | . . . Triggered . | . . . Disarmed . | . . . Reprogrammed . | . . . Reused . | . . . Traps Extracted . | . . . Installed . | . . . Triggered . | . . . Machines | -11 -10 -10 ---------- Run | Yrd Mat Min Machines Disabled . | . . . Max in Single Turn . | . . . Machines Repaired . | . . . Machines Dismantled . | . . . Machines Sabotaged . | . . . Overloaded Fab Kills . | . . . Hacking | -11 -10 -10 --------- Run | Yrd Mat Min Machines Accessed 8 | . 8 . Terminals 7 | . 7 . Fabricators . | . . . Repair Stations . | . . . Recycling Units 1 | . 1 . Scanalyzers . | . . . Garrison Access . | . . . Total Hacks 25 | . 25 . Successful 12 | . 12 . Failed 13 | . 13 . Catastrophic 3 | . 3 . Database Lockouts . | . . . Manual 14 | . 14 . Terminals 23 | . 23 . Fabricators . | . . . Repair Stations . | . . . Recycling Units 2 | . 2 . Scanalyzers . | . . . Garrison Access . | . . . Terminal Hacks 10 | . 10 . Record 1 | . 1 . Part Schematic 1 | . 1 . Robot Schematic 3 | . 3 . Robot Analysis 2 | . 2 . Prototype ID Bank 1 | . 1 . Branch Access Points 1 | . 1 . Recall Reinforcements 1 | . 1 . Fabricator Hacks . | . . . Repair Station Hacks . | . . . Recycling Unit Hacks 1 | . 1 . Report Inventory 1 | . 1 . Scanalyzer . | . . . Garrison Access Hacks . | . . . Unauthorized Hacks . | . . . Terminals . | . . . Fabricators . | . . . Repair Stations . | . . . Recycling Units . | . . . Scanalyzers . | . . . Garrison Access . | . . . Data Cores Recovered . | . . . Used . | . . . Hacking Detections 6 | . 6 . Full Trace Events . | . . . Feedback Events . | . . . Feedback Blocked . | . . . Robot Schematics Acquired 3 | . 3 . Robots Built . | . . . Authchips . | . . . Time . | . . . Total Robot Build Rating . | . . . Part Schematics Acquired 1 | . 1 . Parts Built . | . . . Authchips . | . . . Time . | . . . Total Part Build Rating . | . . . Part Studies Acquired . | . . . Parts Repaired . | . . . Time . | . . . Parts Recycled . | . . . Recycled Matter . | . . . Retrieved Matter . | . . . Retrieved Components . | . . . Parts Scanalyzed . | . . . Part Schematics Acquired . | . . . Parts Damaged . | . . . Bothacking | -11 -10 -10 ------------ Run | Yrd Mat Min Used RIF Installer . | . . . Robots Hacked . | . . . Non-combat . | . . . Combat . | . . . Robot Hacks Applied . | . . . Relay Couplers Released . | . . . Fabnet Peak Effective % . | . . . Robots Rewired . | . . . Allies Hacked . | . . . Hacks Repelled . | . . . Allies | -11 -10 -10 -------- Run | Yrd Mat Min Total Allies . | . . . Largest Group . | . . . Highest-Rated Group . | . . . Highest-Rated Ally . | . . . Total Orders . | . . . Ally Attacks . | . . . Total Damage . | . . . Kills . | . . . Allies Corrupted . | . . . Allies Melted . | . . . Intel | -11 -10 -10 ------- Run | Yrd Mat Min Active Infowar (turns) . | . . . Robot Analysis Total 2 | . 2 . Derelict Logs Recovered 2 | . . 2 Drone Launches . | . . . Drone Recoveries . | . . . Exploration | -11 -10 -10 ------------- Run | Yrd Mat Min Turns Passed 2532 | 95 1924 513 Spaces Moved 1140 | 63 937 140 Core 18 | 18 . . Treads 455 | 45 270 140 Legs . | . . . Wheels 667 | . 667 . Hover . | . . . Flight . | . . . Fastest Speed 50 | 50 130 320 Average Speed 181 | 132 164 320 Slowest Speed 320 | 160 320 320 Overloaded Moves . | . . . Propulsion Burnouts . | . . . Robots Hopped . | . . . Potential Cave-ins . | . . . Cave-ins Triggered . | . . . Exploration Rate (%) 42 | 4 91 31 Regions Visited 2 Branch Regions 1 Pre-discovered Areas 1 | . . 1 Known Exits Taken 1 | . 1 . Unknown Exits Taken 1 | 1 . . Scrap Searched 1 | . . 1 Spaces Dug . | . . . Terrain Destroyed . | . . . Melee . | . . . Projectile . | . . . AOE . | . . . Terrain Rammed . | . . . Walls Destroyed . | . . . Machines Disabled . | . . . Actions | -11 -10 -10 --------- Run | Yrd Mat Min Total 1459 | 72 1209 178 Wait 162 | . 150 12 Move 1138 | 62 936 140 Hop . | . . . Pick Up 35 | 4 29 2 Fast Attach 8 | 6 2 . Attach 7 | . 2 5 Detach 2 | . 2 . Swap 7 | . 7 . Drop 12 | . 12 . Fire 88 | . 69 19 Melee . | . . . Ram . | . . . Kick . | . . . Crush . | . . . Escape Stasis . | . . . Rewire . | . . . Trap . | . . . Miscellaneous . | . . . Route ------- -11/Scrapyard -10/Materials (discovered 5 exits: [*Mat x2] / *Min x2 / [*Sub]) -10/Mines (discovered 1 exit: [*Mat]) History --------- Turn | Location | Event 14 | -11/Scrapyard | Discovered new exit (range 16) 96 | -11/Scrapyard | Entered Materials 143 | -10/Materials | Identified exit to Mines 300 | -10/Materials | Build established: Mutant 396 | -10/Materials | Discovered new exit (range 14) 1245 | -10/Materials | Discovered new exit (range 16) 1792 | -10/Materials | Discovered new exit (range 11) 2020 | -10/Materials | Entered Mines 2020 | -10/Mines | Discovered new exit (range 11) 2080 | -10/Mines | Lost 3 parts (1p1u1w) 2342 | -10/Mines | Learned location of Zion (-7) 2474 | -10/Mines | Assembled infested the area 2514 | -10/Mines | Core integrity fell below 50% 2524 | -10/Mines | Core integrity fell below 20% 2533 | -10/Mines | Destroyed by D-53 Grenadier with Mini Grenade Launcher Last Messages --------------- Acquired 12 matter. R-06 Scavenger collects Lgt. Ion Engine. Acquired Flight Unit. ALERT: Infestation in the mines, dispatching Demolisher response squad. T-07 Excavator destroyed. R-06 Scavenger destroyed. K-01 Serf collects debris. C-45 Heavy ARC bursts open, deploying its payload. D-53 Grenadier unfolds itself. Core Extractor disabled. Autogun destroyed. Lgt. Nuclear Core destroyed. Lgt. Treads destroyed. D-53 Grenadier destroyed. The unstable cave ceiling collapses. Shield Generator destroyed. Lgt. Treads destroyed. The unstable cave ceiling collapses. Map ----- +----------------------------------------------------+ | | | | | | | | | | | | | | | | | | | | | | | | | | | | | | | | | ?????????????????????????????????????????????????? | | ?????????????####################????????????????? | | ?????????????# ##???????????????? | | ???????#####?# ############# #???????????????? | | ??????## ### ####???###### #???????????????? | | ?????## ## #??## #???????????????? | | ####?# ## #?## #########????????? | | # ### ##### #?# "" % #????????? | | ##???#r#### " ######%#????????? | | ###????# %d @ "" #????# #????????? | | ## ###??????##### ##????# #????????? | | ## #????????????# ##???### #####????? | | #????????????## # #????# #????? | | #####?????????????## #????# """ #????? | | ##??????????????????##### ###????# """ #????? | | ##???????????????????????# #??????# """ #????? | | #????????????????????????# #??????# #????? | | ##????????????????????????# #??????# #????? | | #?????????????????????????# ;??????#########????? | | #?????????????????????????# =#???????????????????? | | #?????????????????????????#*%*???????????????????? | | #????????????????????????? **=???????????????????? | | ?????????????????????????? =???????????????????? | | ?????????????????????????? |%???????????????????? | | ????????????????????????? =???????????????????? | | ????????????????????????? ???????????????????? | | ????????????????????????? ???????????????????? | | ????????????????????????? ???????????????????? | | ???????????????????????? ???????????????????? | | ???????????????????????? ???????????????????? | | ?????????????????????????? ???????????????????? | | ?????????????????????????????????????????????????? | | ?????????????????????????????????????????????????? | | ?????????????????????????????????????????????????? | +----------------------------------------------------+ Best States ------------- Heat Dissipation 25 Energy Generation 14 Energy Capacity 250 Matter Stores 300 Matter Capacity 300 Sight Range 16 Terrain Scan Density 10 Utility Shielding 33 Evasion (%) 40 Recoil Reduction 2 Item Schematics ----------------- Flight Unit | -10/Materials | Hacked Robot Schematics ------------------ G-34 Mercenary | -10/Materials | Hacked S-10 Pest | -10/Materials | Hacked W-16 Scout | -10/Materials | Hacked Fabricated ------------ Nothing Repaired ---------- Nothing Studied --------- None Alien Tech Used ----------------- None Achievements -------------- GoHome() Challenges ------------ None Game ------ Seed DecoderProtonLattice Manual? 0 Play Time 00:30:04 Cumulative 5.3 hours Start 2026.08.13 @ 20:50:02 End 2026.08.14 @ 07:49:06 Sessions 2 Manual Loads 0 Difficulty Rogue Special Mode None Game No. 6 Rogue 6 Adventurer 0 Explorer 0 Win Type - Total 0 Types 0/0/0/0/0/0/0/0/0/0 Lore% 12 Gallery% 6 Achievement% 8 Wizard Run 0 Options --------- Layout 2 ASCII 0 Keyboard 1 Movement Numpad Keybinds 0 Fullscreen 2 Font 16/Terminus Map View 50x49 Zoom Use 0% Tactical HUD 0 Map Filters NONE Filters NONE Steam SD RUN: d7cd90d3-b0b8-43b9-b1dd-85b75bffc13a